fUST/lending_fUST_20240524
["ID","MTS","AMOUNT","RATE_DAILY","PERIOD"]
[327801691,1716492639446,-500.0,0.00024931,3]
[327801693,1716492639456,-161.13953335,0.00024931,3]
[327801695,1716492639466,-3442.16,0.00024931,3]
[327801697,1716492639475,-637.13,0.00024931,3]
[327801699,1716492639487,-500.0,0.00024931,3]
[327801701,1716492639499,-1475.17,0.00024931,3]
[327801703,1716492639512,-500.0,0.00024931,3]
[327801705,1716492639522,-500.0,0.00024931,3]
[327801707,1716492639532,-562.75353784,0.00024931,3]
[327801709,1716492639543,-500.0,0.00024931,3]
[327801711,1716492639553,-535.15,0.00024931,3]
[327801713,1716492639563,-1771.57,0.00024931,3]
[327801715,1716492639573,-617.26,0.00024931,3]
[327801717,1716492639585,-500.0,0.00024931,3]
[327801719,1716492639595,-538.94,0.00024931,3]
[327801721,1716492639605,-500.0,0.00024931,3]
[327801723,1716492639614,-500.0,0.00024931,3]
[327801725,1716492639624,-500.0,0.00024931,3]
[327801727,1716492639634,-2212.81,0.00024931,3]
[327801729,1716492639644,-500.0,0.00024931,3]
[327801731,1716492639654,-500.0,0.00024931,3]
[327801733,1716492639664,-837.13,0.00024931,3]
[327801735,1716492639673,-500.0,0.00024931,3]
[327801737,1716492639684,-500.0,0.00024931,3]
[327801739,1716492639694,-500.0,0.00024931,3]
[327801741,1716492639705,-500.0,0.00024931,3]
[327801743,1716492639715,-500.0,0.00024931,3]
[327801745,1716492639726,-500.0,0.00024931,3]
[327801747,1716492639738,-576.99,0.00024931,3]
[327801749,1716492639748,-1509.26,0.00024931,3]
[327801751,1716492639758,-500.0,0.00024931,3]
[327801753,1716492639768,-500.0,0.00024931,3]
[327801755,1716492639778,-1420.1,0.00024931,2]
[327801757,1716492639788,-500.0,0.00024931,3]
[327801759,1716492639798,-500.0,0.00024931,3]
[327801761,1716492639808,-500.0,0.00024931,3]
[327801763,1716492639819,-500.0,0.00024931,3]
[327801765,1716492639830,-500.0,0.00024931,3]
[327801767,1716492639840,-946.7,0.00024931,3]
[327801769,1716492639852,-1232.74,0.00024931,3]
[327801771,1716492639863,-500.0,0.00024931,3]
[327801773,1716492639873,-695.86,0.00024931,3]
[327801775,1716492639883,-2414.85,0.00024931,3]
[327801777,1716492639894,-453.99649916,0.00024931,3]
[327801779,1716492639904,-500.0,0.00024931,3]
[327801781,1716492639914,-500.0,0.00024931,3]
[327801783,1716492639928,-2940.66,0.00024931,3]
[327801785,1716492639939,-1449.1,0.00024931,3]
[327801787,1716492639950,-803.32,0.00024931,3]
[327801789,1716492639960,-500.0,0.00024931,3]
[327801791,1716492639970,-500.0,0.00024931,3]
[327801793,1716492639981,-791.49,0.00024931,3]
[327801795,1716492639992,-519.32,0.00024931,3]
[327801797,1716492640002,-519.19,0.00024931,3]
[327801799,1716492640012,-548.29,0.00024931,3]
[327801801,1716492640023,-3761.03,0.00024931,3]
[327801803,1716492640033,-1037.75,0.00024931,3]
[327801805,1716492640043,-500.0,0.00024931,3]
[327801807,1716492640054,-654.77,0.00024931,3]
[327801809,1716492640064,-1544.05,0.00024931,3]
[327801811,1716492640075,-1798.44,0.00024931,3]
[327801813,1716492640086,-500.0,0.00024931,3]
[327801815,1716492640096,-500.0,0.00024931,3]
[327801817,1716492640107,-500.0,0.00024931,3]
[327801819,1716492640117,-2942.64,0.00024931,3]
[327801821,1716492640127,-532.89,0.00024931,3]
[327801823,1716492640141,-500.0,0.00024931,3]
[327801825,1716492640152,-500.0,0.00024931,3]
[327801827,1716492640163,-500.0,0.00024931,3]
[327801830,1716492640174,-2000.0,0.00024931,3]
[327801831,1716492640184,-2191.87,0.00024931,3]
[327801834,1716492640195,-500.0,0.00024931,3]
[327801836,1716492640206,-235.631067,0.00024931,2]
[327801838,1716492640216,-235.631067,0.00024931,2]
[327801840,1716492640227,-235.631067,0.00024931,2]
[327801842,1716492640237,-235.631067,0.00024931,2]
[327801844,1716492640247,-22925.23,0.00024931,3]
[327801846,1716492640258,-235.631067,0.00024931,2]
[327801848,1716492640268,-235.631067,0.00024931,2]
[327801850,1716492640279,-235.631067,0.00024931,2]
[327801852,1716492640289,-235.631061,0.00024931,2]
[327801854,1716492640299,-500.0,0.00024931,3]
[327801856,1716492640309,-500.0,0.00024931,3]
[327801858,1716492640320,-3130.94,0.00024931,3]
[327801860,1716492640331,-1040.67,0.00024931,3]
[327801862,1716492640341,-1254.86,0.00024931,3]
[327801864,1716492640352,-1109.55,0.00024931,3]
[327801866,1716492640361,-2641.09,0.00024931,3]
[327801868,1716492640372,-548.42,0.00024931,2]
[327801870,1716492640386,-747.03,0.00024931,3]
[327801872,1716492640397,-500.0,0.00024931,3]
[327801874,1716492640407,-2898.8,0.00024931,3]
[327801876,1716492640418,-2443.21,0.00024931,3]
[327801878,1716492640429,-981.11,0.00024931,3]
[327801880,1716492640440,-500.0,0.00024931,3]
[327801883,1716492640462,-500.0,0.00024931,3]
[327801885,1716492640476,-500.0,0.00024931,3]
[327801887,1716492640489,-1444.52,0.00024931,3]
[327801890,1716492640502,-526.98,0.00024931,3]
[327801892,1716492640518,-500.0,0.00024931,3]
[327801894,1716492640530,-500.0,0.00024931,3]
[327801896,1716492640543,-3143.75,0.00024931,3]
[327801898,1716492640555,-579.81,0.00024931,3]
[327801900,1716492640567,-1911.89,0.00024931,3]
[327801902,1716492640578,-500.0,0.00024931,3]
[327801904,1716492640592,-500.0,0.00024931,3]
[327801906,1716492640604,-500.0,0.00024931,3]
[327801908,1716492640615,-500.0,0.00024931,3]
[327801911,1716492640628,-20026.6,0.00024931,3]
[327801913,1716492640642,-2055.06,0.00024931,3]
[327801915,1716492640654,-1034.2,0.00024931,3]
[327801917,1716492640665,-500.0,0.00024931,3]
[327801919,1716492640676,-500.0,0.00024931,3]
[327801921,1716492640688,-521.42391136,0.00024931,3]
[327801923,1716492640700,-500.0,0.00024931,3]
[327801925,1716492640711,-500.0,0.00024931,3]
[327801928,1716492640722,-1036.01,0.00024931,3]
[327801930,1716492640734,-500.0,0.00024931,3]
[327801932,1716492640746,-5155.44,0.00024931,3]
[327801934,1716492640758,-500.0,0.00024931,3]
[327801936,1716492640769,-527.39,0.00024931,3]
[327801938,1716492640780,-6142.32,0.00024931,3]
[327801940,1716492640791,-2311.81,0.00024931,3]
[327801942,1716492640803,-762.04,0.00024931,3]
[327801944,1716492640816,-500.0,0.00024931,3]
[327801946,1716492640826,-500.0,0.00024931,3]
[327801948,1716492640837,-500.0,0.00024931,3]
[327801950,1716492640849,-2337.34,0.00024931,3]
[327801953,1716492640861,-1494.66,0.00024931,3]
[327801955,1716492640872,-697.25,0.00024931,3]
[327801957,1716492640882,-500.0,0.00024931,3]
[327801959,1716492640896,-500.0,0.00024931,3]
[327801961,1716492640907,-544.53,0.00024931,3]
[327801963,1716492640918,-151.0,0.00024931,2]
[327801965,1716492640928,-151.0,0.00024931,2]
[327801967,1716492640939,-894.63,0.00024931,3]
[327801969,1716492640950,-151.0,0.00024931,2]
[327801971,1716492640961,-500.0,0.00024931,3]
[327801973,1716492640972,-151.0,0.00024931,2]
[327801975,1716492640983,-500.0,0.00024931,3]
[327801977,1716492640993,-500.0,0.00024931,3]
[327801979,1716492641003,-500.0,0.00024931,3]
[327801981,1716492641014,-3750.03,0.00024931,3]
[327801983,1716492641024,-500.22,0.00024931,3]
[327801985,1716492641034,-1164.55,0.00024931,3]
[327801987,1716492641044,-769.23,0.00024931,3]
[327801989,1716492641054,-500.0,0.00024931,3]
[327801992,1716492641064,-500.0,0.00024931,3]
[327801994,1716492641075,-500.0,0.00024931,3]
[327801996,1716492641085,-500.0,0.00024931,3]
[327801998,1716492641095,-1666.53,0.00024931,3]
[327802000,1716492641105,-555.38,0.00024931,3]
[327802002,1716492641114,-596.96,0.00024931,3]
[327802004,1716492641124,-545.59,0.00024931,3]
[327802006,1716492641138,-500.0,0.00024931,3]
[327802008,1716492641148,-392.50803358,0.00024931,3]
[327802010,1716492641157,-1498.92,0.00024931,3]
[327802012,1716492641167,-1613.5,0.00024931,3]
[327802014,1716492641177,-500.0,0.00024931,3]
[327802016,1716492641187,-500.0,0.00024931,3]
[327802018,1716492641197,-500.0,0.00024931,3]
[327802020,1716492641208,-500.0,0.00024931,3]
[327802022,1716492641218,-500.0,0.00024931,3]
[327802024,1716492641228,-963.66,0.00024931,3]
[327802026,1716492641239,-225.89884647,0.00024931,3]
[327802030,1716492641249,-2990.86,0.00024931,3]
[327802034,1716492641259,-844.91,0.00024931,3]
[327802036,1716492641270,-2200.1,0.00024931,3]
[327802038,1716492641280,-500.0,0.00024931,3]
[327802040,1716492641290,-151.0,0.00024931,2]
[327802042,1716492641301,-500.0,0.00024931,3]
[327802044,1716492641311,-500.0,0.00024931,3]
[327802046,1716492641321,-500.0,0.00024931,3]
[327802048,1716492641331,-500.0,0.00024931,3]
[327802050,1716492641341,-500.0,0.00024931,3]
[327802052,1716492641351,-500.0,0.00024931,3]
[327802054,1716492641361,-500.0,0.00024931,3]
[327802056,1716492641371,-524.87671981,0.00024931,3]
[327802058,1716492641381,-500.0,0.00024931,3]
[327802060,1716492641392,-500.0,0.00024931,3]
[327802062,1716492641402,-500.0,0.00024931,3]
[327802064,1716492641412,-614.46,0.00024931,3]
[327802066,1716492641423,-500.0,0.00024931,3]
[327802068,1716492641432,-500.0,0.00024931,3]
[327802070,1716492641442,-500.0,0.00024931,3]
[327802072,1716492641452,-3942.6,0.00024931,3]
[327802074,1716492641462,-500.0,0.00024931,3]
[327802076,1716492641472,-674.07,0.00024931,3]
[327802078,1716492641483,-500.0,0.00024931,3]
[327802080,1716492641493,-1075.45,0.00024931,3]
[327802083,1716492641507,-500.56678805,0.00024931,3]
[327802085,1716492641518,-500.0,0.00024931,3]
[327802087,1716492641528,-500.0,0.00024931,3]
[327802089,1716492641539,-676.19,0.00024931,3]
[327802091,1716492641550,-1359.71,0.00024931,3]
[327802093,1716492641560,-500.0,0.00024931,3]
[327802095,1716492641570,-732.61,0.00024931,3]
[327802097,1716492641580,-500.0,0.00024931,3]
[327802099,1716492641591,-151.0,0.00024931,2]
[327802101,1716492641601,-622.83,0.00024931,3]
[327802103,1716492641612,-3354.08,0.00024931,3]
[327802105,1716492641623,-500.0,0.00024931,3]
[327802107,1716492641633,-10862.29,0.00024931,3]
[327802109,1716492641644,-500.0,0.00024931,3]
[327802111,1716492641656,-500.0,0.00024931,3]
[327802120,1716492641795,-500.0,0.00024931,3]
[327802121,1716492641804,-7898.64,0.00024931,3]
[327802122,1716492641814,-592.70939255,0.00024931,3]
[327802123,1716492641824,-711.83,0.00024931,3]
[327802124,1716492641833,-6992.92,0.00024931,3]
[327802125,1716492641843,-500.0,0.00024931,3]
[327802126,1716492641852,-3163.02,0.00024931,3]
[327802127,1716492641862,-502.44,0.00024931,3]
[327802128,1716492641871,-575.20991796,0.00024931,3]
[327802129,1716492641881,-500.0,0.00024931,3]
[327802130,1716492641891,-500.0,0.00024931,3]
[327802131,1716492641901,-4161.69,0.00024931,3]
[327802132,1716492641911,-469.28154678,0.00024931,2]
[327802133,1716492641921,-500.0,0.00024931,3]
[327802134,1716492641931,-500.0,0.00024931,3]
[327802135,1716492641940,-457.44,0.00024931,3]
[327802136,1716492641950,-500.0,0.00024931,3]
[327802137,1716492641960,-520.36,0.00024931,3]
[327802139,1716492641970,-500.0,0.00024931,3]
[327802140,1716492641980,-3491.04,0.00024931,3]
[327802142,1716492641990,-500.0,0.00024931,3]
[327802144,1716492641999,-500.0,0.00024931,3]
[327802146,1716492642008,-576.39,0.00024931,3]
[327802147,1716492642018,-599.42,0.00024931,3]
[327802148,1716492642027,-12605.02,0.00024931,3]
[327802149,1716492642036,-675.46,0.00024931,3]
[327802150,1716492642046,-27954.74089477,0.00025,2]
[327802151,1716492642055,-4182.94256593,0.00025,2]
[327802152,1716492642065,-200.0,0.00025,2]
[327802153,1716492642075,-297.25307842,0.00025,2]
[327802154,1716492642085,-167.45627556,0.00025,2]
[327802155,1716492642094,-89929.38566235,0.00025,2]
[327802156,1716492642104,-1020.19272306,0.00025,2]
[327802157,1716492642114,-1000.0,0.00025,6]
[327802158,1716492642123,-500.0,0.00025205,4]
[327802159,1716492642132,-500.0,0.00025205,4]
[327802160,1716492642144,-314.6793971,0.00025205,4]
[327802161,1716492642154,-500.0,0.00025205,4]
[327802162,1716492642163,-500.0,0.00025205,4]
[327802163,1716492642173,-500.0,0.00025205,4]
[327802164,1716492642182,-500.0,0.00025205,4]
[327802165,1716492642193,-500.0,0.00025205,4]
[327802166,1716492642202,-561.89,0.00025205,4]
[327802167,1716492642212,-500.0,0.00025205,4]
[327802168,1716492642221,-500.0,0.00025205,4]
[327802169,1716492642230,-637.81,0.00025205,4]
[327802170,1716492642239,-500.0,0.00025205,4]
[327802171,1716492642249,-502.34,0.00025205,4]
[327802172,1716492642259,-500.0,0.00025205,4]
[327802173,1716492642268,-1955.17,0.00025205,4]
[327802174,1716492642277,-535.0,0.00025205,4]
[327802175,1716492642287,-500.0,0.00025205,4]
[327802176,1716492642296,-500.0,0.00025205,4]
[327802177,1716492642305,-517.93,0.00025205,4]
[327802178,1716492642315,-502.95,0.00025205,4]
[327802179,1716492642324,-500.0,0.00025205,4]
[327802180,1716492642334,-500.0,0.00025205,4]
[327802181,1716492642343,-500.0,0.00025205,4]
[327802182,1716492642352,-500.0,0.00025205,4]
[327802183,1716492642361,-500.0,0.00025205,4]
[327802184,1716492642370,-500.0,0.00025205,4]
[327802185,1716492642380,-500.0,0.00025205,4]
[327802186,1716492642391,-500.0,0.00025205,4]
[327802187,1716492642400,-500.0,0.00025205,4]
[327802188,1716492642410,-500.0,0.00025205,4]
[327802189,1716492642419,-500.0,0.00025205,4]
[327802190,1716492642428,-691.58,0.00025205,4]
[327802191,1716492642437,-583.63,0.00025205,4]
[327802192,1716492642446,-500.0,0.00025205,4]
[327802193,1716492642456,-1409.83,0.00025205,4]
[327802194,1716492642465,-500.0,0.00025205,4]
[327802195,1716492642475,-500.0,0.00025205,4]
[327802196,1716492642484,-615.07,0.00025205,4]
[327802197,1716492642493,-727.54,0.00025205,4]
[327802198,1716492642505,-534.15,0.00025205,4]
[327802199,1716492642516,-1150.02,0.00025205,4]
[327802200,1716492642526,-585.23,0.00025205,4]
[327802201,1716492642535,-1165.1,0.00025205,4]
[327802202,1716492642546,-500.0,0.00025205,4]
[327802203,1716492642556,-955.9,0.00025205,4]
[327802204,1716492642565,-500.0,0.00025205,4]
[327802205,1716492642575,-1076.47,0.00025205,4]
[327802206,1716492642584,-500.0,0.00025205,4]
[327802207,1716492642594,-2534.46,0.00025205,4]
[327802208,1716492642604,-500.0,0.00025205,4]
[327802209,1716492642614,-3442.16,0.00025205,4]
[327802210,1716492642624,-637.13,0.00025205,4]
[327802211,1716492642633,-500.0,0.00025205,4]
[327802212,1716492642644,-1475.17,0.00025205,4]
[327802213,1716492642653,-500.0,0.00025205,4]
[327802214,1716492642662,-500.0,0.00025205,4]
[327802215,1716492642671,-535.15,0.00025205,4]
[327802216,1716492642682,-500.0,0.00025205,4]
[327802217,1716492642691,-1771.57,0.00025205,4]
[327802218,1716492642701,-617.26,0.00025205,4]
[327802219,1716492642711,-500.0,0.00025205,4]
[327802220,1716492642720,-538.94,0.00025205,4]
[327802221,1716492642729,-500.0,0.00025205,4]
[327802222,1716492642739,-500.0,0.00025205,4]
[327802223,1716492642748,-2212.81,0.00025205,4]
[327802224,1716492642757,-500.0,0.00025205,4]
[327802225,1716492642767,-500.0,0.00025205,4]
[327802226,1716492642776,-837.13,0.00025205,4]
[327802227,1716492642785,-500.0,0.00025205,4]
[327802228,1716492642795,-404.77105954,0.00025205,4]
[327802229,1716492642804,-500.0,0.00025205,4]
[327802230,1716492642813,-500.0,0.00025205,4]
[327802231,1716492642822,-500.0,0.00025205,4]
[327802232,1716492642832,-500.0,0.00025205,4]
[327802233,1716492642842,-576.99,0.00025205,4]
[327802234,1716492642852,-1509.26,0.00025205,4]
[327802235,1716492642861,-500.0,0.00025205,4]
[327802236,1716492642871,-500.0,0.00025205,4]
[327802237,1716492642880,-1420.1,0.00025205,2]
[327802238,1716492642890,-500.0,0.00025205,4]
[327802239,1716492642899,-500.0,0.00025205,4]
[327802240,1716492642909,-500.0,0.00025205,4]
[327802241,1716492642918,-500.0,0.00025205,4]
[327802242,1716492642928,-500.0,0.00025205,4]
[327802243,1716492642937,-946.7,0.00025205,4]
[327802244,1716492642946,-1232.74,0.00025205,4]
[327802245,1716492642955,-500.0,0.00025205,4]
[327802246,1716492642965,-695.86,0.00025205,4]
[327802247,1716492642975,-2414.85,0.00025205,4]
[327802248,1716492642984,-500.0,0.00025205,4]
[327802249,1716492642993,-500.0,0.00025205,4]
[327802250,1716492643003,-2940.66,0.00025205,4]
[327802251,1716492643012,-1449.1,0.00025205,4]
[327802252,1716492643021,-803.32,0.00025205,4]
[327802253,1716492643030,-500.0,0.00025205,4]
[327802254,1716492643040,-500.0,0.00025205,4]
[327802257,1716492643049,-791.49,0.00025205,4]
[327802259,1716492643059,-519.32,0.00025205,4]
[327802261,1716492643068,-519.19,0.00025205,4]
[327802263,1716492643078,-548.29,0.00025205,4]
[327802265,1716492643087,-1037.75,0.00025205,4]
[327802267,1716492643096,-3761.03,0.00025205,4]
[327802269,1716492643106,-500.0,0.00025205,4]
[327802271,1716492643116,-654.77,0.00025205,4]
[327802273,1716492643125,-1544.05,0.00025205,4]
[327802275,1716492643134,-1798.44,0.00025205,4]
[327802277,1716492643146,-282.25761242,0.00025205,4]
[327802279,1716492643155,-500.0,0.00025205,4]
[327802281,1716492643164,-500.0,0.00025205,4]
[327802282,1716492643174,-2942.64,0.00025205,4]
[327802283,1716492643183,-532.89,0.00025205,4]
[327802284,1716492643192,-500.0,0.00025205,4]
[327802285,1716492643202,-500.0,0.00025205,4]
[327802286,1716492643211,-500.0,0.00025205,4]
[327802287,1716492643220,-1571.33258889,0.00025205,4]
[327802288,1716492643229,-2191.87,0.00025205,4]
[327802289,1716492643239,-500.0,0.00025205,4]
[327802290,1716492643248,-22925.23,0.00025205,4]
[327802291,1716492643258,-500.0,0.00025205,4]
[327802292,1716492643267,-500.0,0.00025205,4]
[327802293,1716492643276,-3130.94,0.00025205,4]
[327802294,1716492643286,-1040.67,0.00025205,4]
[327802295,1716492643295,-1254.86,0.00025205,4]
[327802296,1716492643304,-1109.55,0.00025205,4]
[327802297,1716492643314,-548.42,0.00025205,2]
[327802298,1716492643323,-2641.09,0.00025205,4]
[327802299,1716492643332,-747.03,0.00025205,4]
[327802300,1716492643342,-2898.8,0.00025205,4]
[327802301,1716492643351,-981.11,0.00025205,4]
[327802302,1716492643360,-2443.21,0.00025205,4]
[327802303,1716492643370,-500.0,0.00025205,4]
[327802304,1716492643379,-500.0,0.00025205,4]
[327802305,1716492643391,-500.0,0.00025205,4]
[327802306,1716492643402,-1444.52,0.00025205,4]
[327802307,1716492643411,-526.98,0.00025205,4]
[327802308,1716492643420,-500.0,0.00025205,4]
[327802309,1716492643430,-3143.75,0.00025205,4]
[327802310,1716492643440,-579.81,0.00025205,4]
[327802311,1716492643450,-1911.89,0.00025205,4]
[327802312,1716492643459,-500.0,0.00025205,4]
[327802313,1716492643468,-500.0,0.00025205,4]
[327802315,1716492643479,-500.0,0.00025205,4]
[327802317,1716492643489,-500.0,0.00025205,4]
[327802318,1716492643499,-20026.6,0.00025205,4]
[327802319,1716492643514,-2055.06,0.00025205,4]
[327802320,1716492643523,-1034.2,0.00025205,4]
[327802321,1716492643533,-500.0,0.00025205,4]
[327802322,1716492643543,-500.0,0.00025205,4]
[327802323,1716492643553,-500.0,0.00025205,4]
[327802324,1716492643563,-500.0,0.00025205,4]
[327802325,1716492643572,-500.0,0.00025205,4]
[327802326,1716492643583,-1036.01,0.00025205,4]
[327802327,1716492643593,-5155.44,0.00025205,4]
[327802328,1716492643602,-500.0,0.00025205,4]
[327802329,1716492643612,-527.39,0.00025205,4]
[327802330,1716492643621,-6142.32,0.00025205,4]
[327802331,1716492643632,-2311.81,0.00025205,4]
[327802332,1716492643644,-762.04,0.00025205,4]
[327802333,1716492643655,-500.0,0.00025205,4]
[327802334,1716492643665,-500.0,0.00025205,4]
[327802335,1716492643675,-500.0,0.00025205,4]
[327802336,1716492643687,-2337.34,0.00025205,4]
[327802337,1716492643696,-1494.66,0.00025205,4]
[327802338,1716492643706,-697.25,0.00025205,4]
[327802339,1716492643717,-500.0,0.00025205,4]
[327802340,1716492643727,-500.0,0.00025205,4]
[327802341,1716492643737,-544.53,0.00025205,4]
[327802342,1716492643747,-894.63,0.00025205,4]
[327802343,1716492643756,-500.0,0.00025205,4]
[327802344,1716492643766,-500.0,0.00025205,4]
[327802345,1716492643776,-500.0,0.00025205,4]
[327802346,1716492643785,-500.0,0.00025205,4]
[327802347,1716492643795,-3750.03,0.00025205,4]
[327802348,1716492643805,-500.22,0.00025205,4]
[327802349,1716492643815,-1164.55,0.00025205,4]
[327802350,1716492643825,-769.23,0.00025205,4]
[327802351,1716492643835,-500.0,0.00025205,4]
[327802352,1716492643846,-500.0,0.00025205,4]
[327802354,1716492643856,-500.0,0.00025205,4]
[327802356,1716492643866,-500.0,0.00025205,4]
[327802358,1716492643875,-1666.53,0.00025205,4]
[327802360,1716492643887,-555.38,0.00025205,4]
[327802362,1716492643896,-596.96,0.00025205,4]
[327802364,1716492643906,-545.59,0.00025205,4]
[327802366,1716492643917,-500.0,0.00025205,4]
[327802368,1716492643927,-1498.92,0.00025205,4]
[327802370,1716492643937,-1613.5,0.00025205,4]
[327802372,1716492643948,-500.0,0.00025205,4]
[327802374,1716492643960,-500.0,0.00025205,4]
[327802376,1716492643971,-500.0,0.00025205,4]
[327802378,1716492643982,-500.0,0.00025205,4]
[327802380,1716492643992,-370.62377368,0.00025205,4]
[327802382,1716492644001,-963.66,0.00025205,4]
[327802384,1716492644011,-2990.86,0.00025205,4]
[327802386,1716492644021,-844.91,0.00025205,4]
[327802388,1716492644031,-2200.1,0.00025205,4]
[327802390,1716492644041,-500.0,0.00025205,4]
[327802392,1716492644051,-500.0,0.00025205,4]
[327802394,1716492644059,-500.0,0.00025205,4]
[327802396,1716492644069,-500.0,0.00025205,4]
[327802398,1716492644078,-500.0,0.00025205,4]
[327802400,1716492644088,-500.0,0.00025205,4]
[327802403,1716492644097,-500.0,0.00025205,4]
[327802406,1716492644106,-500.0,0.00025205,4]
[327802409,1716492644116,-500.0,0.00025205,4]
[327802412,1716492644125,-500.0,0.00025205,4]
[327802415,1716492644135,-614.46,0.00025205,4]
[327802417,1716492644145,-500.0,0.00025205,4]
[327802420,1716492644155,-500.0,0.00025205,4]
[327802422,1716492644164,-3942.6,0.00025205,4]
[327802424,1716492644173,-500.0,0.00025205,4]
[327802426,1716492644183,-674.07,0.00025205,4]
[327802439,1716492644299,-500.0,0.00025205,4]
[327802441,1716492644310,-1075.45,0.00025205,4]
[327802443,1716492644320,-500.0,0.00025205,4]
[327802445,1716492644330,-500.0,0.00025205,4]
[327802447,1716492644340,-676.19,0.00025205,4]
[327802449,1716492644350,-1359.71,0.00025205,4]
[327802451,1716492644359,-500.0,0.00025205,4]
[327802453,1716492644369,-732.61,0.00025205,4]
[327802455,1716492644379,-604.02626698,0.00025205,4]
[327802457,1716492644391,-3354.08,0.00025205,4]
[327802459,1716492644400,-622.83,0.00025205,4]
[327802461,1716492644411,-500.0,0.00025205,4]
[327802463,1716492644420,-10862.29,0.00025205,4]
[327802465,1716492644430,-500.0,0.00025205,4]
[327802467,1716492644440,-500.0,0.00025205,4]
[327802469,1716492644450,-500.0,0.00025205,4]
[327802471,1716492644459,-711.83,0.00025205,4]
[327802473,1716492644469,-6992.92,0.00025205,4]
[327802475,1716492644478,-500.0,0.00025205,4]
[327802477,1716492644488,-3163.02,0.00025205,4]
[327802479,1716492644499,-502.44,0.00025205,4]
[327802481,1716492644514,-500.0,0.00025205,4]
[327802483,1716492644524,-500.0,0.00025205,4]
[327802485,1716492644534,-4161.69,0.00025205,4]
[327802487,1716492644547,-500.0,0.00025205,4]
[327802488,1716492644558,-500.0,0.00025205,4]
[327802489,1716492644569,-457.44,0.00025205,4]
[327802491,1716492644579,-500.0,0.00025205,4]
[327802493,1716492644591,-520.36,0.00025205,4]
[327802494,1716492644601,-500.0,0.00025205,4]
[327802495,1716492644612,-3491.04,0.00025205,4]
[327802496,1716492644622,-500.0,0.00025205,4]
[327802497,1716492644632,-500.0,0.00025205,4]
[327802498,1716492644646,-576.39,0.00025205,4]
[327802499,1716492644657,-599.42,0.00025205,4]
[327802500,1716492644667,-12605.02,0.00025205,4]
[327802501,1716492644678,-675.46,0.00025205,4]
[327802502,1716492644688,-500.0,0.00025479,5]
[327802503,1716492644699,-500.0,0.00025479,5]
[327802504,1716492644710,-500.0,0.00025479,5]
[327802505,1716492644720,-500.0,0.00025479,5]
[327802506,1716492644729,-500.0,0.00025479,5]
[327802507,1716492644738,-469.22384924,0.00025479,5]
[327802509,1716492644749,-500.0,0.00025479,5]
[327802511,1716492644759,-561.89,0.00025479,5]
[327802513,1716492644769,-500.0,0.00025479,5]
[327802515,1716492644779,-500.0,0.00025479,5]
[327802517,1716492644789,-637.81,0.00025479,5]